[Event "Biel Festival Masters Blitz 2024"]
[White "Keymer,Vincent"]
[Black "Mishra,Abhimanyu"]
[Site "Biel"]
[Round "1.1"]
[Annotator "TA"]
[Result "1/2-1/2"]
[Date "2024.07.21"]
[WhiteElo "2721"]
[BlackElo "2627"]
[PlyCount "113"]
[TimeControl "180+2"]

{[%evp 55,113,-45,-7,-79,-52,-55,-62,-65,-18,-65,-60,-65,0,0,0,0,0,0,0,0,0,0,0,-1078,-1041,-932,-34,-34,-50,-50,-50,-432,-387,-356,-212,-320,-255,-504,-489,-470,-35,-28,0,0,0,0,0,0,0,0,0,0,0,0,0,0,0,0,0,0]} 1. Nf3 {[%emt 0:0:2]} d5 {[%emt 0:0:1]} 2. g3 {[%emt 0:0:1]} g6 {[%emt 0:0:1]} 3. Bg2 {[%emt 0:0:1]} Bg7 {[%emt 0:0:1]} 4. d4 {[%emt 0:0:1]} c6 {[%emt 0:0:1]} 5. O-O {[%emt 0:0:2]} Nf6 {[%emt 0:0:1]} 6. a4 {[%emt 0:0:1]} a5 {[%emt 0:0:1]} 7. Nbd2 {[%emt 0:0:1]} O-O {[%emt 0:0:15]} 8. b3 {[%emt 0:0:1]} Bf5 {[%emt 0:0:25]} 9. Bb2 {[%emt 0:0:2]} Ne4 {[%emt 0:0:7]} 10. Nh4 {[%emt 0:0:12] D02: 1 d4 d5 2 Nf3 sidelines, including 2...Nf6 3 g3 and 2...Nf6 3 Bf4.} Nxd2 {[%emt 0:0:2]} 11. Qxd2 {[%emt 0:0:2]} Be6 {[%emt 0:0:4]} 12. e3 $146 {[%emt 0:0:6]} ({Predecessor:} 12. e4 dxe4 13. Bxe4 Nd7 14. Rfe1 Nf6 15. Bg2 Bd5 16. Qe2 e6 17. Bf1 g5 18. Ng2 Bxg2 19. Bxg2 {1-0 Artemiev,V (2700)-Fier,A (2569) Titled Tuesday intern op 22 Mar Late blitz 2022 (2)} )c5 {[%emt 0:0:14]} 13. c3 {[%emt 0:0:15]} cxd4 {[%emt 0:0:5]} 14. exd4 {[%emt 0:0:6]} Nc6 {[%emt 0:0:2]} 15. Ba3 {[%emt 0:0:9]} Qd7 {[%emt 0:0:3]} 16. Rfe1 {[%emt 0:0:3]} Rfe8 {[%emt 0:0:12]} 17. Nf3 {[%emt 0:0:18]} Rac8 {[%emt 0:0:10]} 18. Rac1 {[%emt 0:0:22]} Bf5 {[%emt 0:0:17]} 19. Ne5 {[%emt 0:0:5]} Nxe5 {[%emt 0:0:3]} 20. dxe5 {[%emt 0:0:1]} Be6 {[%emt 0:0:12]} 21. h4 {[%emt 0:0:16]} b5 {[%emt 0:0:7]} 22. axb5 {[%emt 0:0:20]} Qxb5 {[%emt 0:0:1]} 23. Rb1 {[%emt 0:0:5]} Bf5 {[%emt 0:0:10]} 24. Rb2 {[%emt 0:0:12]} e6 {[%emt 0:0:1]} 25. Bd6 {[%emt 0:0:9]} Bf8 {[%emt 0:0:25]} 26. Bxf8 {[%emt 0:0:11]} Rxf8 {[%emt 0:0:2]} 27. Re3 {[%emt 0:0:40]} h5 {[%emt 0:0:6]} 28. Bf1 {[%emt 0:0:5]} Qc5 {[%emt 0:0:0]} 29. Ra2 {[%emt 0:0:0]} (29. b4 $11 {keeps the balance.} axb4 30. cxb4 )Rb8 {[%emt 0:0:3]} 30. c4 {[%emt 0:0:6]} d4 {[%emt 0:0:4]} 31. Re1 $1 {[%emt 0:0:1]} (31. Rf3 Rb4 (31... Qxe5 32. Rxa5 Qd6 33. c5 $11 )32. Bd3 Rxb3 (32... Qxe5 33. Bxf5 exf5 34. Rd3 $17 )33. Rxa5 Qc7 $17 )Rb4 {[%emt 0:0:4]} (31... Rxb3 $15 {is superior.} 32. Rxa5 Qc7 )32. Rea1 {[%emt 0:0:3]} (32. Bd3 $1 $11 )Ra8 $1 $15 {[%emt 0:0:17]} (32... Rxb3 $6 33. Rxa5 Qb6 34. Ra6 $14 )33. Ra4 {[%emt 0:0:4]} Be4 {[%emt 0:0:9]} (33... Rxb3 34. Rxa5 Rxa5 35. Rxa5 $11 )(33... Rxa4 $15 34. Rxa4 Qxe5 )34. Rxb4 $11 {[%emt 0:0:3]} axb4 {[%emt 0:0:1]} 35. Rxa8+ {[%emt 0:0:1]} Bxa8 {[%emt 0:0:1]} 36. Qf4 $1 {[%emt 0:0:3]} Qc6 {[%emt 0:0:3]} 37. f3 $1 {[%emt 0:0:1]} Qxf3 {[%emt 0:0:1]} 38. Qxf3 {[%emt 0:0:1]} Bxf3 {[%emt 0:0:1]} 39. Bg2 $2 {[%emt 0:0:4][%mdl 8192]} (39. c5 $11 )Bd1 $1 $19 {[%emt 0:0:6]} 40. c5 {[%emt 0:0:1] [#]} Bxb3 $2 {[%emt 0:0:2]} (40... Kf8 $1 $19 41. Bf1 Bxb3 )41. c6 $15 {[%emt 0:0:2]} Ba4 {[%emt 0:0:1]} 42. c7 {[%emt 0:0:1]} Bd7 {[%emt 0:0:1]} 43. Bc6 $2 {[%emt 0:0:3][%mdl 8192]} (43. Kf2 $15 )Bc8 $19 {[%emt 0:0:1]} (43... Bxc6 $2 44. c8=Q+ (44. c8=B Bb5 45. Kh2 b3 46. Bb7 b2 47. Be4 d3 48. Kg2 d2 49. Kf3 d1=Q+ 50. Ke3 Qg1+ 51. Kf3 Bc6 52. Ke2 Bxe4 53. Kd2 Qd4+ 54. Ke2 b1=Q 55. g4 Qbd1# )Kg7 45. Qxc6 $18 )44. Kf2 {[%emt 0:0:3] [#]} f6 {[%emt 0:0:9]} (44... b3 $142 $1 45. Ke2 b2 )45. Kf3 {[%emt 0:0:2]} (45. exf6 $142 Kf7 46. Ke2 )b3 {[%emt 0:0:7]} 46. Ba4 $2 {[%emt 0:0:2]} (46. exf6 Kf7 47. Ba4 )b2 $19 {[%emt 0:0:1]} (46... fxe5 47. Ke4 $11 )47. Bc2 {[%emt 0:0:1]} Kf7 $2 {[%emt 0:0:7]} ({And not} 47... fxe5 48. Ke4 $16 )(47... Bb7+ $19 48. Ke2 Kg7 (48... fxe5 $2 49. Be4 $19 )49. exf6+ Kxf6 )48. Ke4 $15 {[%emt 0:0:1]} fxe5 {[%emt 0:0:2]} 49. Kxe5 {[%emt 0:0:1]} Ke7 {[%emt 0:0:3]} 50. Bxg6 {[%emt 0:0:2]} Ba6 {[%emt 0:0:4]} ({But not} 50... Kd7 $6 51. Kxd4 Bb7 (51... Kxc7 52. Kc3 $16 )52. Kc3 $16 )51. Kxd4 {[%emt 0:0:4]} Kd6 {[%emt 0:0:2]} 52. Kc3 {[%emt 0:0:2]} Kxc7 {[%emt 0:0:2]} 53. Kxb2 {[%emt 0:0:1]} Be2 {[%emt 0:0:1]} 54. Kc3 {[%emt 0:0:1]} Kd6 {[%emt 0:0:2]} 55. Kd4 {[%emt 0:0:2]} e5+ {[%emt 0:0:1]} 56. Ke3 {[%emt 0:0:1]} Bg4 {[%emt 0:0:2]} 57. Be4 {[%emt 0:0:1]} 1/2-1/2

[Event "Biel Festival Masters Blitz 2024"]
[White "Le,Quang Liem"]
[Black "Martirosyan,Haik M."]
[Site "Biel"]
[Round "1.2"]
[Annotator "TA"]
[Result "1/2-1/2"]
[Date "2024.07.21"]
[WhiteElo "2731"]
[BlackElo "2662"]
[PlyCount "113"]
[TimeControl "180+2"]

{[%evp 60,113,389,383,445,453,398,34,34,-80,-80,-80,-80,-82,-101,-85,0,-25,196,-67,-59,-59,-38,-72,-72,-152,-152,-152,-138,-680,-665,-658,-83,-657,-645,-493,-271,-984,0,-486,-130,-130,-107,-114,-107,-107,0,0,0,-114,-114,-114,0,-112,0,-114]} 1. c4 {[%emt 0:0:1]} e5 {[%emt 0:0:1]} 2. g3 {[%emt 0:0:1]} Nf6 {[%emt 0:0:1]} 3. Bg2 {[%emt 0:0:1]} d5 {[%emt 0:0:1]} 4. cxd5 {[%emt 0:0:2]} Nxd5 {[%emt 0:0:1]} 5. Nf3 {[%emt 0:0:1]} Nc6 {[%emt 0:0:1]} 6. O-O {[%emt 0:0:2]} Nb6 {[%emt 0:0:2]} 7. b3 {[%emt 0:0:1]} Be7 {[%emt 0:0:1]} 8. Bb2 {[%emt 0:0:1]} f6 {[%emt 0:0:1]} 9. Na3 {[%emt 0:0:4]} O-O {[%emt 0:0:5]} 10. Nc2 {[%emt 0:0:4]} a5 {[%emt 0:0:7]} 11. e4 {[%emt 0:0:8]} Bg4 {[%emt 0:0:6]} 12. d4 {[%emt 0:0:13]} exd4 {[%emt 0:0:2]} 13. Ncxd4 {[%emt 0:0:1]} Nxd4 {[%emt 0:0:11]} 14. Bxd4 {[%emt 0:0:7]} Qd7 {[%emt 0:0:15]} 15. Be3 {[%emt 0:0:7]} a4 {[%emt 0:0:26]} 16. Qc2 {[%emt 0:0:7]} axb3 {[%emt 0:0:1]} 17. axb3 {[%emt 0:0:1]} Rxa1 {[%emt 0:0:1]} 18. Rxa1 {[%emt 0:0:1]} Rd8 {[%emt 0:0:11]} 19. h3 {[%emt 0:0:6]} Bh5 {[%emt 0:0:13]} 20. Nd4 {[%emt 0:0:3]} Nc8 {[%emt 0:0:15]} 21. Nf5 {[%emt 0:0:24]} Bf8 {[%emt 0:0:1]} 22. Kh2 {[%emt 0:0:3]} Nd6 {[%emt 0:0:12]} 23. Ra7 {[%emt 0:0:3]} c6 {[%emt 0:0:9]} 24. Nd4 {[%emt 0:0:16]} Bf7 {[%emt 0:0:6]} 25. h4 {[%emt 0:0:7]} Qe8 {[%emt 0:0:4]} 26. f3 {[%emt 0:0:12]} f5 {[%emt 0:0:5]} 27. Bg5 {[%emt 0:0:3]} Nc8 {[%emt 0:0:7]} 28. Ra4 {[%emt 0:0:1]} b5 {[%emt 0:0:10]} 29. Nxc6 {[%emt 0:0:35]} bxa4 {[%emt 0:0:1]} 30. Nxd8 {[%emt 0:0:1]} Bxb3 {[%emt 0:0:2]} 31. Qxc8 {[%emt 0:0:1]} a3 {[%emt 0:0:3]} 32. Bf1 {[%emt 0:0:5]} (32. exf5 a2 33. Qb7 Qa4 $11 (33... a1=B 34. Qxb3+ Kh8 35. Nf7+ ))h6 {[%emt 0:0:10]} 33. Bf4 $2 {[%emt 0:0:12]} (33. Bc4+ $18 Bxc4 34. Qxc4+ Kh7 35. Ne6 hxg5 36. Nxg5+ Kh8 37. Qd5 (37. exf5 Qd7 $16 ))a2 $1 $14 {[%emt 0:0:3]} 34. Bc4+ {[%emt 0:0:1]} (34. exf5 $2 a1=Q (34... a1=B $2 35. Bc4+ Bxc4 36. Qxc4+ Kh7 37. Ne6 $18 )35. Bc4+ Kh7 $19 (35... Bxc4 $2 36. Qxc4+ Kh8 37. Ne6 $19 ))(34. Qc3 $14 Kh7 35. Be5 (35. Qxb3 $2 a1=Q $19 )Qxd8 36. Qxb3 )Kh7 $17 {[%emt 0:0:6]} 35. Bxb3 {[%emt 0:0:16]} (35. Qxf5+ $2 g6 36. Qe5 (36. Qe6 $2 Qxe6 37. Nxe6 a1=Q $19 )Qxe5 (36... Qxd8 $2 37. Bxb3 Bg7 38. Qxg7+ Kxg7 39. Bxa2 $19 )37. Bxe5 Bxc4 $19 )a1=Q {[%emt 0:0:3]} (35... a1=B $2 36. Qxf5+ (36. exf5 Qe2+ 37. Kh3 h5 $18 )g6 37. Qd5 $18 )36. Qxf5+ {[%emt 0:0:2]} g6 {[%emt 0:0:4]} 37. Qd5 {[%emt 0:0:1]} Bg7 {[%emt 0:0:11]} (37... Qb2+ $17 38. Kh3 Be7 )38. Ne6 {[%emt 0:0:4]} (38. h5 $5 Bd4 (38... gxh5 $2 39. Qf5+ Qg6 40. Bg8+ Kxg8 41. Qxg6 $18 )39. Qb7+ Bg7 40. hxg6+ Qxg6 41. Qd5 Qb2+ 42. Kh3 $11 )Qf6 $2 {[%emt 0:0:5]} (38... Qaa8 $11 )39. Nxg7 $2 {[%emt 0:0:6]} (39. e5 $18 Qfe7 40. Nxg7 Qxg7 41. e6 )Qxg7 {[%emt 0:0:1]} 40. e5 {[%emt 0:0:5]} Qed7 {[%emt 0:0:2]} 41. Qe4 {[%emt 0:0:3]} Qb7 {[%emt 0:0:5]} 42. Bd5 {[%emt 0:0:8]} (42. Bc2 $142 )Qb2+ $17 {[%emt 0:0:1]} 43. Kh3 {[%emt 0:0:1]} Qa1 {[%emt 0:0:2]} 44. g4 $2 {[%emt 0:0:6][%mdl 8192]} (44. Kh2 $17 )Qh1+ $19 {[%emt 0:0:5]} 45. Bh2 {[%emt 0:0:2]} Qf1+ {[%emt 0:0:2]} 46. Kg3 {[%emt 0:0:0]} Qa7 $1 {[%emt 0:0:1]} 47. Qc2 {[%emt 0:0:12]} Qe7 {[%emt 0:0:9]} (47... Qa5 $142 48. h5 Qxd5 49. Qxg6+ Kh8 50. Qxh6+ Kg8 51. Qg5+ Kf8 52. Qf5+ Ke7 )48. Qc3 $2 {[%emt 0:0:10]} (48. Qd2 )Qa7 {[%emt 0:0:0]} (48... Qe2 $142 {[%cal Oe7h4] ( -> ...Qxh4+!)} 49. f4 Qxh4+ 50. Kxh4 Qxh2+ 51. Qh3 g5+ (51... Qxf4 $2 {too greedy.} 52. Qg3 $18 )52. fxg5 hxg5+ (52... Qxe5 53. Qd3+ Kh8 54. Qd2 $18 )53. Kxg5+ Qxh3 54. Be4+ Kg7 )49. Qc2 $1 $19 {[%emt 0:0:1]} Qe1+ $2 {[%emt 0:0:1]} (49... Qa5 $19 50. h5 Qxd5 51. Qxg6+ Kh8 52. Qxh6+ Kg8 )50. Kh3 $17 {[%emt 0:0:1]} Qe7 {[%emt 0:0:1]} 51. Bg3 {[%emt 0:0:2]} Qf1+ {[%emt 0:0:5]} 52. Qg2 {[%emt 0:0:1] [#]} Qb5 {[%emt 0:0:6]} ({Black should try} 52... Qxg2+ $1 $17 53. Kxg2 Qd8 )53. Be4 $1 $11 {[%emt 0:0:1]} Kg7 {[%emt 0:0:0]} 54. Qd2 {[%emt 0:0:3]} (54. h5 $1 $11 )Qf1+ $17 {[%emt 0:0:6]} 55. Qg2 {[%emt 0:0:1] [#]} ({Of course not} 55. Kh2 Qa7 56. Qg2 Qc1 $15 )Qc4 {[%emt 0:0:2]} ({Black should play} 55... Qxg2+ $1 $17 56. Kxg2 Qf7 )56. Qb2 {[%emt 0:0:2]} (56. h5 $1 $11 {was the only way to keep the balance.} )Qf1+ {[%emt 0:0:6]} 57. Qg2 {[%emt 0:0:1]} 1/2-1/2

[Event "Biel Festival Masters Blitz 2024"]
[White "Shankland,Sam"]
[Black "Praggnanandhaa R"]
[Site "Biel"]
[Round "1.3"]
[Annotator "TA"]
[Result "0-1"]
[Date "2024.07.21"]
[WhiteElo "2683"]
[BlackElo "2747"]
[PlyCount "76"]
[TimeControl "180+2"]

{[%evp 12,76,34,18,21,21,14,29,17,21,29,27,36,30,41,0,0,0,0,-33,-9,-60,-25,-59,-55,-60,-30,-28,-30,-29,-25,-70,-61,-76,-64,-73,-72,-59,-35,-68,-41,-48,-81,-62,-81,-91,-48,-45,-45,-62,-54,-123,-123,-114,-66,-56,-58,-86,-18,-127,-43,-386,-417,-401,-383,-1080,-365]} 1. c4 {[%emt 0:0:1]} Nf6 {[%emt 0:0:1]} 2. g3 {[%emt 0:0:1]} e5 {[%emt 0:0:6]} 3. Bg2 {[%emt 0:0:2]} d5 {[%emt 0:0:1]} 4. cxd5 {[%emt 0:0:1]} Nxd5 {[%emt 0:0:1]} 5. Nf3 {[%emt 0:0:1]} Nc6 {[%emt 0:0:4]} 6. O-O {[%emt 0:0:3]} Nf6 {[%emt 0:0:3]} 7. Nc3 {[%emt 0:0:6]} h6 {[%emt 0:0:6]} 8. d3 {[%emt 0:0:5]} Bd6 {[%emt 0:0:1]} 9. b3 {[%emt 0:0:3]} O-O {[%emt 0:0:1] Weiß hat minimalen Vorteil.} 10. Bb2 {[%emt 0:0:0]} Re8 {[%emt 0:0:2]} 11. Rc1 {[%emt 0:0:2]} Bf5 {[%emt 0:0:2]} 12. Nd2 {[%emt 0:0:6]} Qd7 {[%emt 0:0:1]} 13. Nce4 {[%emt 0:0:4]} Nxe4 {[%emt 0:0:4]} 14. Nxe4 {[%emt 0:0:1]} Bh3 {[%emt 0:0:3]} 15. e3 {[%emt 0:0:18]} Rad8 {[%emt 0:0:6]} 16. Qe2 {[%emt 0:0:7]} (16. Nxd6 $11 cxd6 17. d4 )Bf8 {[%emt 0:0:8]} 17. Rfd1 {[%emt 0:0:8]} Bxg2 {[%emt 0:0:24]} 18. Kxg2 {[%emt 0:0:1]} Qe6 {[%emt 0:0:2]} 19. Nc5 {[%emt 0:0:42]} Bxc5 {[%emt 0:0:1]} 20. Rxc5 {[%emt 0:0:1]} Rd7 {[%emt 0:0:2]} 21. Rdc1 {[%emt 0:0:34][%cal Ob3b4]} Red8 {[%emt 0:0:7]} 22. R1c3 {[%emt 0:0:2]} Rd6 {[%emt 0:0:15]} 23. a3 {[%emt 0:0:9] Gegen Nb4 gerichtet.} b6 {[%emt 0:0:19] Es drohte b4} 24. R5c4 {[%emt 0:0:4]} Ne7 {[%emt 0:0:8]} 25. e4 {[%emt 0:0:16]} (25. Rxc7 $2 {zu gefräßig.} Nd5 26. Rxa7 Nxc3 27. Bxc3 Rxd3 $19 )c5 {[%emt 0:0:14]} 26. b4 {[%emt 0:0:1]} cxb4 {[%emt 0:0:1]} 27. axb4 {[%emt 0:0:2]} Nc6 $1 {[%emt 0:0:1]} 28. Rc1 {[%emt 0:0:15]} a5 {[%emt 0:0:22]} 29. bxa5 {[%emt 0:0:7]} Nxa5 {[%emt 0:0:1]} 30. R4c3 {[%emt 0:0:1]} Nb3 {[%emt 0:0:1]} 31. Rb1 {[%emt 0:0:5] [#]} (31. Rd1 $1 $15 )Nc5 $1 $17 {[%emt 0:0:12] Schwarz steht aktiver.} 32. Rd1 {[%emt 0:0:1]} Qg6 {[%emt 0:0:21]} ({Günstiger ist} 32... Qd7 $17 {[%cal Rc5d3]} 33. Ba3 Rxd3 34. Rdxd3 Nxd3 )33. f3 $15 {[%emt 0:0:13]} Ne6 $36 {[%emt 0:0:6][%mdl 2048] Und ...Nf4+ würde nun gewinnen. Schwarz drückt.} 34. Qe3 {[%emt 0:0:2]} Ra8 {[%emt 0:0:16]} (34... b5 $17 {...b4 wäre nun fies.} 35. Kf2 Ng5 )35. Kf1 {[%emt 0:0:7]} (35. Rc2 $11 )Qh5 {[%emt 0:0:2]} (35... Nd4 $17 {Und jetzt ...Rf6 wäre schön.} 36. Kg2 Rf6 )36. h4 $2 {[%emt 0:0:4][%mdl 8192]} (36. Kg2 $15 )Nd4 $19 {[%emt 0:0:4]} 37. Kg2 {[%emt 0:0:1]} Rg6 {[%emt 0:0:8]} 38. Kf2 $2 {[%emt 0:0:11] [#]} (38. Qf2 Qxh4 39. Ra1 )Nxf3 $2 {[%emt 0:0:5] Gewichteter Fehlerwert: Weiß=0.59/Schwarz=0.13 (sehr präzise) .  Verlustzug:     	Weiß=1     	---        Fehler:       	Weiß=4     	Schwarz=4     Ungenau:       	Weiß=6     	Schwarz=3     OK:         	Weiß=10    	Schwarz=13    Bester:       	Weiß=1     	Schwarz=3     Stark:        	---       	Schwarz=2} 0-1

[Event "Biel Festival Masters Blitz 2024"]
[White "Mishra,Abhimanyu"]
[Black "Praggnanandhaa R"]
[Site "Biel"]
[Round "2.1"]
[Annotator "TA"]
[Result "0-1"]
[Date "2024.07.21"]
[WhiteElo "2627"]
[BlackElo "2747"]
[PlyCount "122"]
[TimeControl "180+2"]

{[%evp 28,122,20,17,27,10,5,0,0,-7,0,0,0,-4,0,-2,0,-13,-11,-9,0,-9,0,-64,-60,-56,-56,-70,-70,-82,-82,-87,-61,-62,-62,-74,-41,-41,-15,-15,-15,-15,-15,-15,-3,-15,-15,-15,-15,-15,0,-15,-14,-15,-8,-15,0,0,0,0,0,-8,-8,-8,-8,-29,-29,-30,-30,-30,0,-429,-400,-3478,-5405,-5955,-5832,-5168,-4920,-29974,-29975,-29979,-29980,-29980,-29981,-29983,-29983,-29983,-29984,-29983,-29984,-29985,-29986,-29986,-29987,-29987,-29987]} 1. e4 {[%emt 0:0:1]} e5 {[%emt 0:0:1]} 2. Nf3 {[%emt 0:0:1]} Nc6 {[%emt 0:0:1]} 3. Bc4 {[%emt 0:0:1]} Bc5 {[%emt 0:0:2]} 4. c3 {[%emt 0:0:1]} Nf6 {[%emt 0:0:1]} 5. d3 {[%emt 0:0:1]} a6 {[%emt 0:0:1]} 6. O-O {[%emt 0:0:1]} d6 {[%emt 0:0:1]} 7. a4 {[%emt 0:0:4]} Ba7 {[%emt 0:0:2]} 8. Re1 {[%emt 0:0:2]} O-O {[%emt 0:0:7]} 9. h3 {[%emt 0:0:2]} h6 {[%emt 0:0:2]} 10. Nbd2 {[%emt 0:0:3][%cal Bb1d2,Bd2f1,Bf1g3][%mdl 32]} Ne7 {[%emt 0:0:1]} 11. Bb3 {[%emt 0:0:14]} Ng6 {[%emt 0:0:2]} 12. d4 {[%emt 0:0:2]} Re8 {[%emt 0:0:9]} 13. Bc2 {[%emt 0:0:6]} b5 {[%emt 0:0:7]} 14. Nf1 {[%emt 0:0:11]} Bb7 {[%emt 0:0:1]} 15. Ng3 {[%emt 0:0:9]} Bb6 {[%emt 0:0:18]} 16. Be3 {[%emt 0:0:32]} exd4 {[%emt 0:0:10]} 17. Bxd4 {[%emt 0:0:21]} c5 {[%emt 0:0:4] Die Stellung ist ausgeglichen.} 18. Be3 {[%emt 0:0:3]} d5 {[%emt 0:0:13][%cal Rf6e4]} 19. axb5 {[%emt 0:0:27]} axb5 {[%emt 0:0:7]} 20. Rxa8 {[%emt 0:0:2]} Qxa8 {[%emt 0:0:28]} 21. exd5 {[%emt 0:0:17]} Nxd5 {[%emt 0:0:1]} ({Viel schwächer wäre} 21... Bxd5 22. Bxg6 fxg6 23. Qd3 $14 )22. Nf5 {[%emt 0:0:12]} Nxe3 {[%emt 0:0:20]} 23. Rxe3 {[%emt 0:0:2]} Rxe3 {[%emt 0:0:54]} 24. Nxe3 {[%emt 0:0:1]} Bxf3 {[%emt 0:0:12]} 25. Qxf3 {[%emt 0:0:8]} ({Vorzuziehen ist} 25. gxf3 $11 Qd8 26. Qxd8+ Bxd8 27. Bxg6 fxg6 28. Nc2 )Qxf3 $15 {[%emt 0:0:1]} 26. gxf3 $11 {[%emt 0:0:1][%mdl 4096] Endspiel. KBN-KBN} Nf4 {[%emt 0:0:1] Verhindert Nd5.} 27. Bf5 {[%emt 0:0:22]} g6 {[%emt 0:0:20]} 28. Bd7 {[%emt 0:0:1]} b4 {[%emt 0:0:1]} 29. Kf1 {[%emt 0:0:4]} bxc3 {[%emt 0:0:2]} 30. bxc3 {[%emt 0:0:0]} Ba5 {[%emt 0:0:1]} 31. c4 {[%emt 0:0:4]} Kg7 {[%emt 0:0:2]} 32. Nd5 {[%emt 0:0:2]} Nd3 {[%emt 0:0:2]} 33. Ke2 {[%emt 0:0:6]} Nc1+ {[%emt 0:0:1]} 34. Ke3 {[%emt 0:0:8]} Nb3 {[%emt 0:0:1]} 35. f4 {[%emt 0:0:5]} Nd4 {[%emt 0:0:3]} 36. Bg4 {[%emt 0:0:5]} f5 {[%emt 0:0:5]} 37. Bd1 {[%emt 0:0:1]} Kf7 {[%emt 0:0:0]} 38. Ba4 {[%emt 0:0:6]} Kg7 {[%emt 0:0:8]} 39. Be8 {[%emt 0:0:1]} Bd8 {[%emt 0:0:2]} 40. Ba4 {[%emt 0:0:2]} Kf7 {[%emt 0:0:2]} 41. Bd1 {[%emt 0:0:3]} Ke6 {[%emt 0:0:1]} 42. Ba4 {[%emt 0:0:1]} g5 {[%emt 0:0:1]} 43. fxg5 {[%emt 0:0:1]} hxg5 {[%emt 0:0:1]} 44. Bd1 {[%emt 0:0:5]} Ke5 {[%emt 0:0:1]} 45. Kd3 {[%emt 0:0:4]} Ba5 {[%emt 0:0:3]} 46. Bh5 {[%emt 0:0:3]} Be1 {[%emt 0:0:1]} 47. f3 {[%emt 0:0:1]} Ba5 {[%emt 0:0:5]} 48. Ke3 $1 {[%emt 0:0:2]} Be1 {[%emt 0:0:3]} 49. f4+ $2 {[%emt 0:0:4][%mdl 8192]} (49. Kd3 $11 {und Weiss muss sich keine Sorgen machen.} )gxf4+ $19 {[%emt 0:0:2]} 50. Nxf4 {[%emt 0:0:1] [#]} (50. Kd3 $142 f3 51. Ke3 )Bd2+ $1 {[%emt 0:0:2][%mdl 512]} 51. Kxd2 {[%emt 0:0:2]} Kxf4 {[%emt 0:0:1] KB-KN} 52. Bg6 {[%emt 0:0:3]} Nf3+ {[%emt 0:0:1]} 53. Kc3 {[%emt 0:0:2]} Nh4 {[%emt 0:0:5] Schwarz setzt Matt.} 54. Bh7 {[%emt 0:0:2]} Ke3 {[%emt 0:0:1]} 55. Kb3 {[%emt 0:0:3]} f4 {[%emt 0:0:0]} 56. Kc2 {[%emt 0:0:2]} f3 {[%emt 0:0:4]} 57. Bd3 {[%emt 0:0:1]} Ng2 {[%emt 0:0:4]} 58. Bf1 {[%emt 0:0:2]} Kf2 {[%emt 0:0:1]} 59. Bd3 {[%emt 0:0:3]} Ne1+ {[%emt 0:0:0]} 60. Kc3 {[%emt 0:0:1]} Nxd3 {[%emt 0:0:1]} 61. Kxd3 {[%emt 0:0:3]} Kg3 {[%emt 0:0:1] Gewichteter Fehlerwert: Weiß=0.42/Schwarz=0.11 (sehr präzise) .  Verlustzug:     	Weiß=1     	---        Fehler:       	Weiß=2     	---        Ungenau:       	---       	Schwarz=3     OK:         	Weiß=7     	Schwarz=9     Bester:       	Weiß=3     	Schwarz=4     Stark:        	Weiß=1     	---        Brilliant:      	---       	Schwarz=1} 0-1

[Event "Biel Festival Masters Blitz 2024"]
[White "Martirosyan,Haik M."]
[Black "Shankland,Sam"]
[Site "Biel"]
[Round "2.2"]
[Annotator "TA"]
[Result "0-1"]
[Date "2024.07.21"]
[WhiteElo "2662"]
[BlackElo "2683"]
[PlyCount "88"]
[TimeControl "180+2"]

{[%evp 11,88,14,35,26,38,35,25,8,37,17,22,24,45,41,70,46,63,72,63,48,54,47,50,17,22,32,32,8,38,0,33,-26,-18,-116,-63,-276,-277,-839,-79,-694,-622,-1081,-469,-819,-806,-806,-812,-770,-791,-1348,-1066,-1400,-1392,-1243,-1018,-1166,-1047,-1968,-1872,-1642,-1597,-5314,-5289,-4922,-951,-2284,-1915,-29957,-29955,-9753,-9753,-6219,-1335,-29982,-29983,-29983,-29984,-29984,-29984]} 1. d4 {[%emt 0:0:1]} Nf6 {[%emt 0:0:1]} 2. Bg5 {[%emt 0:0:1]} c5 {[%emt 0:0:3]} 3. Bxf6 {[%emt 0:0:2]} gxf6 {[%emt 0:0:2]} 4. d5 {[%emt 0:0:1]} Qb6 {[%emt 0:0:2]} 5. Qc1 {[%emt 0:0:1]} f5 {[%emt 0:0:2]} 6. c4 {[%emt 0:0:1]} Bg7 {[%emt 0:0:2]} 7. Nc3 {[%emt 0:0:1]} d6 {[%emt 0:0:2]} 8. e3 {[%emt 0:0:2]} Nd7 {[%emt 0:0:5]} 9. Nf3 {[%emt 0:0:1] White has an edge.} Qb4 {[%emt 0:0:12]} 10. a3 {[%emt 0:0:11]} Bxc3+ {[%emt 0:0:4]} 11. bxc3 {[%emt 0:0:1]} Qa5 {[%emt 0:0:1][%cal Ob7b5]} 12. Bd3 {[%emt 0:0:3]} Nb6 {[%emt 0:0:3]} 13. O-O {[%emt 0:0:6][%cal Oa3a4]} Bd7 {[%emt 0:0:22] [#]} 14. a4 $1 {[%emt 0:0:2]} O-O-O {[%emt 0:0:6]} 15. Nd2 {[%emt 0:0:1]} Kb8 {[%emt 0:0:47]} 16. Nb3 {[%emt 0:0:5]} Qa6 {[%emt 0:0:1]} 17. Qb1 {[%emt 0:0:2]} e6 {[%emt 0:0:6]} 18. Nd2 {[%emt 0:0:17]} Qa5 {[%emt 0:0:18]} 19. Rc1 {[%emt 0:0:1]} Rhg8 {[%emt 0:0:7]} 20. e4 {[%emt 0:0:4]} (20. Bf1 {keeps more tension.} h5 21. e4 fxe4 22. Qxe4 f5 23. Qh4 )fxe4 {[%emt 0:0:5]} 21. Nxe4 {[%emt 0:0:6]} (21. Bxe4 $14 exd5 22. cxd5 )exd5 $11 {[%emt 0:0:8]} 22. cxd5 {[%emt 0:0:4]} (22. Nf6 $1 $11 {keeps the balance.} dxc4 23. Bxh7 )Nxd5 {[%emt 0:0:14] Black keeps a firm grip on the game.} (22... c4 $17 23. Bf1 Bf5 (23... Nxd5 24. Nxd6 Bc6 25. Nxc4 $11 )(23... Qxd5 $2 24. Nf6 $18 ))23. Nxd6 $2 {[%emt 0:0:20]} (23. Ng3 $15 )Bc6 $19 {[%emt 0:0:1]} 24. Nc4 $2 {[%emt 0:0:1] [#]} (24. Nxb7 Bxb7 25. Be4 )Qc7 $2 {[%emt 0:0:7]} (24... Rxg2+ $1 $19 25. Kxg2 Ne3+ 26. Kh3 Bg2+ 27. Kg3 Qc7+ 28. f4 Rg8+ 29. Bg6 Nxc4 (29... Rxg6+ 30. Qxg6 hxg6 31. Nxe3 $19 )30. Kxg2 Rxg6+ (30... fxg6 31. Qd3 $14 )31. Qxg6 hxg6 )25. Be4 $2 {[%emt 0:0:1][%mdl 8192] [#]} (25. Bf1 $17 )f5 $1 {[%emt 0:0:6][%mdl 512] And now ...Nf4 would win.} 26. Bf3 {[%emt 0:0:5]} (26. Na5 Qxa5 )Qf4 {[%emt 0:0:10]} (26... Nf4 $142 {( -> ...Nh3+)} 27. g3 Bxf3 28. Qxf5 Rgf8 )27. Qd3 {[%emt 0:1:5]} (27. Na5 {leads to mate.} Qxf3 28. Nxc6+ Ka8 )(27. g3 $142 Qxc4 (27... Qxf3 $2 28. Ne5 $17 )28. a5 )Nb6 {[%emt 0:0:7][%cal Oc6f3] Threatens to win with ...Bxf3!} 28. Qxd8+ {[%emt 0:0:13]} Rxd8 {[%emt 0:0:1]} 29. Bxc6 {[%emt 0:0:1]} Nxc4 {[%emt 0:0:2]} 30. Bb5 {[%emt 0:0:3]} Nd2 {[%emt 0:0:2][%cal Od2f3] ...Nf3+! would now be deadly.} 31. Rd1 {[%emt 0:0:7]} Rg8 {[%emt 0:0:7] ...Nf3+ is the strong threat.} 32. g3 {[%emt 0:0:7]} a6 {[%emt 0:0:4]} 33. Bf1 {[%emt 0:0:19]} Nf3+ {[%emt 0:0:1]} 34. Kh1 {[%emt 0:0:3]} Qh6 {[%emt 0:0:1][%csl Gf3][%cal Rh6h2]} 35. h3 {[%emt 0:0:3]} f4 {[%emt 0:0:4]} 36. Rd3 {[%emt 0:0:2]} Ne5 {[%emt 0:0:2]} 37. Rd5 {[%emt 0:0:1]} Qc6 {[%emt 0:0:2]} 38. c4 {[%emt 0:0:4]} fxg3 {[%emt 0:0:1]} 39. Bg2 {[%emt 0:0:3]} Qf6 {[%emt 0:0:6]} 40. fxg3 {[%emt 0:0:4]} Rxg3 {[%emt 0:0:3]} 41. Rf1 {[%emt 0:0:0] Wards off Qf2} Qg7 {[%emt 0:0:4]} 42. Rf2 {[%emt 0:0:15] [#]} Nf3 $1 {[%emt 0:0:6] Black mates.} 43. Rd8+ {[%emt 0:0:9]} Ka7 {[%emt 0:0:1]} 44. Rd1 {[%emt 0:0:6]} Nh4 {[%emt 0:0:2] Weighted Error Value: White=1.47/Black=0.66.  Loses game:     	White=2     	---        Missed win:     	---       	Black=1      Mistake:       	White=3     	Black=1      Inaccurate:     	White=3     	Black=4      OK:         	White=4     	Black=8      Best:        	---       	Black=1} 0-1